{"text_format":"3","workbook":"xlsx","n_sheets":3,"sheets":["Start","Portefeuille","Activatoewijzing"],"not_rendered":{"charts":1,"images":6,"defined_names":1},"read":"whole","date_system":"1900"}

{"sheet":"Start","index":0,"n_rows":29,"n_cols":2,"rows_kept":29}
["Beleggingen bijhouden","Beleggingen bijhouden"]
[]
["Met het sjabloon Beleggingen bijhouden kunt u uw beleggingen en activatoewijzing volgen. Met het gegevenstype Excel Aandelen blijft uw portefeuille up to date met actuele koersen en de details van uw activa. De twee werkbladen, Portefeuille en Activatoewijzing, worden hieronder beschreven. Opmerking: Het gegevenstype Excel Aandelen is alleen beschikbaar voor Office 365-abonnementen. "]
[]
["Portefeuille","Portefeuille"]
["Voeg uw beleggingen toe, typ tickersymbolen, bedrijfsnamen of fondsnamen op de plaats van de voorbeelden, of voeg er meer toe op extra rijen. Selecteer een activacategorie en voer het aantal aandelen in."]
["Klik op de knop Kolom toevoegen om extra kolommen toe te voegen, zoals Tickersymbool of Beurs."]
{"$rows_empty":13}
["Klik op een van de aandelen om de weergave te vernieuwen. Klik op het tabblad Gegevens in de groep Query’s en verbindingen op Alles vernieuwen of druk op Ctrl+Alt+F5."]
[]
[]
[]
[]
["Activatoewijzing","Activatoewijzing"]
[]
["Pas Categorie en Mijn doel aan om de doelstellingen voor uw portefeuille in te stellen."]
["Wanneer een activacategorie de Drempel overschrijdt, wordt de inhoud weergegeven in geel."]

{"sheet":"Portefeuille","index":1,"n_rows":12,"n_cols":9,"rows_kept":12}
["Beleggingen bijhouden","Beleggingen bijhouden"]
[]
["Portefeuille","Portefeuille"]
[]
["Er is een tabel met bestaande aandelen in cellen B5:I11, en een totaalrij in rij 12. Voer in cellen B5:B11 een bedrijfsnaam en ga naar Gegevens > Vernieuwen of druk op Ctrl+Alt+F5.","Bedrijf","Categorie","Shares","Prijs","Wijzigen","Wijzigen (%)","Portefeuille (%)","Waarde"]
["Voeg uw beleggingen toe, typ tickersymbolen, bedrijfsnamen of fondsnamen op de plaats van de voorbeelden, of voeg er meer toe op extra rijen.  Selecteer een activacategorie en voer het aantal aandelen in.",{"$error":"#VALUE!"},"Amerikaanse aandelen",{"v":1200,"d":"1,200"},{"$f":"_FV(TabelPortefeuille[[#This Row],[Bedrijf]],\"Price\")","v":{"v":105.21,"d":"€ 105.21"}},{"$f":"_FV(TabelPortefeuille[[#This Row],[Bedrijf]],\"Change\")","v":{"v":-0.24,"d":"€ -0.24"}},{"$f":"_FV(TabelPortefeuille[[#This Row],[Bedrijf]],\"Change (%)\",TRUE)","v":{"v":-0.002276,"d":"-0.23%"}},{"$f":"IFERROR(I6/SUBTOTAL(109,TabelPortefeuille[Waarde]),\"\")","v":{"v":0.5974736139719061,"d":"60%"}},{"$f":"D6 * E6","v":{"v":126251.99999999999,"d":"€ 126,252.00"}}]
["Klik op de knop Kolom toevoegen om extra kolommen toe te voegen, zoals Tickersymbool of Beurs.",{"$error":"#VALUE!"},"Obligaties",{"v":1300,"d":"1,300"},{"$f":"_FV(TabelPortefeuille[[#This Row],[Bedrijf]],\"Price\")","v":{"v":10.46,"d":"€ 10.46"}},{"$f":"_FV(TabelPortefeuille[[#This Row],[Bedrijf]],\"Change\")","v":{"v":0.0122760756111569,"d":"€ 0.01"}},{"$f":"_FV(TabelPortefeuille[[#This Row],[Bedrijf]],\"Change (%)\",TRUE)","v":{"v":1.1749999999999998E-3,"d":"0.12%"}},{"$f":"IFERROR(I7/SUBTOTAL(109,TabelPortefeuille[Waarde]),\"\")","v":{"v":0.06435102970875695,"d":"6%"}},{"v":13598.000000000002,"d":"€ 13,598.00"}]
["Klik op een van de aandelen om de weergave te vernieuwen. Klik op het tabblad Gegevens in de groep Query’s en verbindingen op Alles vernieuwen of druk op Ctrl+Alt+F5.",{"$error":"#VALUE!"},"Internationale aandelen",{"v":1200,"d":"1,200"},{"$f":"_FV(TabelPortefeuille[[#This Row],[Bedrijf]],\"Price\")","v":{"v":29.29,"d":"€ 29.29"}},{"$f":"_FV(TabelPortefeuille[[#This Row],[Bedrijf]],\"Change\")","v":{"v":0.0699994333574489,"d":"€ 0.07"}},{"$f":"_FV(TabelPortefeuille[[#This Row],[Bedrijf]],\"Change (%)\",TRUE)","v":{"v":0.0023956,"d":"0.24%"}},{"$f":"IFERROR(I8/SUBTOTAL(109,TabelPortefeuille[Waarde]),\"\")","v":{"v":0.16633401913541615,"d":"17%"}},{"v":35148,"d":"€ 35,148.00"}]
[null,{"$error":"#VALUE!"},"Contant geld",{"v":10000,"d":"10,000"},{"$f":"_FV(TabelPortefeuille[[#This Row],[Bedrijf]],\"Price\")","v":{"v":1,"d":"€ 1.00"}},{"$f":"_FV(TabelPortefeuille[[#This Row],[Bedrijf]],\"Change\")","v":0},{"$f":"_FV(TabelPortefeuille[[#This Row],[Bedrijf]],\"Change (%)\",TRUE)","v":{"v":0,"d":"0.00%"}},{"$f":"IFERROR(I9/SUBTOTAL(109,TabelPortefeuille[Waarde]),\"\")","v":{"v":0.0473238930054103,"d":"5%"}},{"v":10000,"d":"€ 10,000.00"}]
[null,{"$error":"#VALUE!"},"Onroerend goed",125,{"$f":"_FV(TabelPortefeuille[[#This Row],[Bedrijf]],\"Price\")","v":{"v":116.63,"d":"€ 116.63"}},{"$f":"_FV(TabelPortefeuille[[#This Row],[Bedrijf]],\"Change\")","v":{"v":-0.249994620493774,"d":"€ -0.25"}},{"$f":"_FV(TabelPortefeuille[[#This Row],[Bedrijf]],\"Change (%)\",TRUE)","v":{"v":-2.1389E-3,"d":"-0.21%"}},{"$f":"IFERROR(I10/SUBTOTAL(109,TabelPortefeuille[Waarde]),\"\")","v":{"v":0.06899232051526255,"d":"7%"}},{"v":14578.75,"d":"€ 14,578.75"}]
[null,{"$error":"#VALUE!"},"Grondstoffen",100,{"$f":"_FV(TabelPortefeuille[[#This Row],[Bedrijf]],\"Price\")","v":{"v":117.33,"d":"€ 117.33"}},{"$f":"_FV(TabelPortefeuille[[#This Row],[Bedrijf]],\"Change\")","v":{"v":-0.27,"d":"€ -0.27"}},{"$f":"_FV(TabelPortefeuille[[#This Row],[Bedrijf]],\"Change (%)\",TRUE)","v":{"v":-0.002296,"d":"-0.23%"}},{"$f":"IFERROR(I11/SUBTOTAL(109,TabelPortefeuille[Waarde]),\"\")","v":{"v":0.05552512366324791,"d":"6%"}},{"v":11733,"d":"€ 11,733.00"}]
[null,"Totaal",{"$nulls":6},{"$f":"IFERROR(SUBTOTAL(109,TabelPortefeuille[Waarde]), \"\")","v":{"v":211309.75,"d":"€ 211,309.75"}}]

{"sheet":"Activatoewijzing","index":2,"n_rows":25,"n_cols":7,"rows_kept":25}
["Beleggingen bijhouden","Beleggingen bijhouden"]
[]
["Activatoewijzing","Activatoewijzing"]
[]
[]
["In rijen 19-25 is er een staafdiagram met een visuele vergelijking van het daadwerkelijke percentage beleggingen in elke categorie met de doelen die zijn ingesteld in de onderstaande tabel."]
{"$rows_empty":12}
["Er is een tabel die het daadwerkelijke percentage beleggingen in elke categorie berekend en de uitkomst vergelijkt met de doelen.","Categorie","Mijn doel","Werkelijk","Verschil","Drempel","Waarde"]
["De beleggingscategorieën in de tabel Portefeuille in cellen B19:G25 worden automatisch gevuld vanuit de tabel. Voer een doel in voor elke beleggingscategorie in cellen C20:C25 en ga naar Gegevens > Vernieuwen of druk op Ctrl+Alt+F5. ","Amerikaanse aandelen",{"v":0.55,"d":"55%"},{"$f":"IFERROR(G20/SUBTOTAL(109,TabelActivaToewijzing[Waarde]),\"\")","v":{"v":0.5974736139719061,"d":"60%"}},{"$f":"D20 - C20","v":{"v":0.04747361397190608,"d":"4.7%"}},{"$f":"MIN(5%, $C20 * 25%)","v":{"v":0.05,"d":"5%"}},{"$f":"SUMIF(TabelPortefeuille[Categorie], B20, TabelPortefeuille[Waarde])","v":{"v":126251.99999999999,"d":"€ 126,252.00"}}]
["Wanneer een activacategorie de Drempel overschrijdt, wordt de inhoud weergegeven in geel.","Internationale aandelen",{"v":0.2,"d":"20%"},{"$f":"IFERROR(G21/SUBTOTAL(109,TabelActivaToewijzing[Waarde]),\"\")","v":{"v":0.16633401913541615,"d":"17%"}},{"v":-0.03366598086458386,"d":"-3.4%"},{"v":0.05,"d":"5%"},{"$f":"SUMIF(TabelPortefeuille[Categorie], B21, TabelPortefeuille[Waarde])","v":{"v":35148,"d":"€ 35,148.00"}}]
[null,"Obligaties",{"v":0.1,"d":"10%"},{"$f":"IFERROR(G22/SUBTOTAL(109,TabelActivaToewijzing[Waarde]),\"\")","v":{"v":0.06435102970875695,"d":"6%"}},{"v":-0.03564897029124306,"d":"-3.6%"},{"v":0.025,"d":"3%"},{"$f":"SUMIF(TabelPortefeuille[Categorie], B22, TabelPortefeuille[Waarde])","v":{"v":13598.000000000002,"d":"€ 13,598.00"}}]
[null,"Contant geld",{"v":0.05,"d":"5%"},{"$f":"IFERROR(G23/SUBTOTAL(109,TabelActivaToewijzing[Waarde]),\"\")","v":{"v":0.0473238930054103,"d":"5%"}},{"v":-0.0026761069945897,"d":"-0.3%"},{"v":0.0125,"d":"1%"},{"$f":"SUMIF(TabelPortefeuille[Categorie], B23, TabelPortefeuille[Waarde])","v":{"v":10000,"d":"€ 10,000.00"}}]
[null,"Onroerend goed",{"v":0.05,"d":"5%"},{"$f":"IFERROR(G24/SUBTOTAL(109,TabelActivaToewijzing[Waarde]),\"\")","v":{"v":0.06899232051526255,"d":"7%"}},{"v":0.018992320515262548,"d":"1.9%"},{"v":0.0125,"d":"1%"},{"$f":"SUMIF(TabelPortefeuille[Categorie], B24, TabelPortefeuille[Waarde])","v":{"v":14578.75,"d":"€ 14,578.75"}}]
[null,"Grondstoffen",{"v":0.05,"d":"5%"},{"$f":"IFERROR(G25/SUBTOTAL(109,TabelActivaToewijzing[Waarde]),\"\")","v":{"v":0.05552512366324791,"d":"6%"}},{"v":0.005525123663247908,"d":"0.6%"},{"v":0.0125,"d":"1%"},{"$f":"SUMIF(TabelPortefeuille[Categorie], B25, TabelPortefeuille[Waarde])","v":{"v":11733,"d":"€ 11,733.00"}}]